Cogmind - Beta 11 @@@ ROGUE MODE // 2022.04.02 @ 17:31:14 Player: Decinym Result: Destroyed by as-07603 with Assembled Rifle Performance ------------- Evolutions (1) 500 Regions Visited (5) 1000 Robots Destroyed (48) 240 Value Destroyed (1076) 1076 Prototype IDs (40) 800 Alien Tech Used (0) 0 Bonus (-721) -721 TOTAL SCORE: 2895 Bonus ------- High Alert Combat Kills 29 Aligned with FarCom 300 Friendly Fire -1050 Cogmind --------- Core Integrity 0/400 Matter 217/300 Energy 180/280 System Corruption 1% Temperature Cool (0) Movement Core (600) Ox11 Location -9/Exiles Parts ------- > --- POWER (1) -------- Heavy Ion Engine > --- PROPULSION (2) --- (None) > --- UTILITY (4) ------ Large Storage Unit Hardened Light Armor Plating > --- WEAPON (2) ------- Makeshift Sword > --- INVENTORY (15) --- Improved Medium Laser Beamcaster Shotgun Shotgun Grenade Launcher Datajack Peak State ------------ > --- POWER ------------ Heavy Ion Engine > --- PROPULSION ------- Improved Treads Improved Treads > --- UTILITY ---------- Improved Heat Sink Large Storage Unit Hardened Light Armor Plating Hardened Light Armor Plating > --- WEAPON ----------- Improved Medium Laser Beamcaster > --- INVENTORY -------- Heavy Ion Engine Heavy Ion Engine Light Treads Light Treads Large Matter Pod Weapon Shielding Hardened Light Armor Plating Hardened Light Armor Plating Heavy Assault Rifle Shotgun Shotgun Grenade Launcher Datajack Plasma Cutter Makeshift Sword [Rating: 25] Favorites ----------- Power Heavy Ion Engine Engine Heavy Ion Engine Propulsion Improved Treads Treads Improved Treads Leg Aluminum Leg Utility Hardened Light Armor Plating Device Improved Heat Sink Storage Large Storage Unit Processor Terrain Scan Processor Protection Hardened Light Armor Plating Weapon Light Assault Rifle Energy Gun Improved Medium Laser Ballistic Gun Light Assault Rifle Launcher Grenade Launcher Special Weapon Plasma Cutter Slashing Weapon Makeshift Sword Special Melee Weapon Datajack Build | -11 -10 -10 -9 -9 -9 ------- Run | Scr Mat Min Mat Min Exi Slots Evolved 2 | . . . 2 . . Power . | . . . . . . Propulsion . | . . . . . . Utility 2 | . . . 2 . . Weapon . | . . . . . . Parts Attached 56 | . . 7 29 9 11 Power 4 | . . 1 1 1 1 Engine 4 | . . 1 1 1 1 Core . | . . . . . . Reactor . | . . . . . . Propulsion 9 | . . 2 5 . 2 Treads 9 | . . 2 5 . 2 Leg . | . . . . . . Wheel . | . . . . . . Hover . | . . . . . . Flight . | . . . . . . Utility 18 | . . 3 10 3 2 Device 5 | . . 2 2 1 . Storage 3 | . . . 3 . . Processor 1 | . . 1 . . . Hackware . | . . . . . . Protection 9 | . . . 5 2 2 Artifact . | . . . . . . Weapon 25 | . . 1 13 5 6 Energy Gun 5 | . . . 3 1 1 Energy Cannon . | . . . . . . Ballistic Gun 10 | . . 1 7 2 . Ballistic Cannon . | . . . . . . Launcher 4 | . . . 3 1 . Special Weapon 2 | . . . . 1 1 Impact Weapon . | . . . . . . Slashing Weapon 3 | . . . . . 3 Piercing Weapon . | . . . . . . Special Melee Weapon 1 | . . . . . 1 Unidentified Prototypes 2 | . . . 2 . . Parts Lost 16 | . . 3 2 . 11 Power 2 | . . 1 . . 1 Propulsion 5 | . . 1 . . 4 Utility 7 | . . 1 2 . 4 Weapon 2 | . . . . . 2 Highest Loss Streak 11 | . . 3 1 . 11 To Critical Strikes 4 | . . . . . 4 Average Slot Usage (%) 96 | . 85 93 92 100 98 Engine 11 | . 14 13 11 11 11 Treads 19 | . . 13 21 22 21 Leg 4 | . 28 14 . . . Device 9 | . . 6 9 11 10 Storage 11 | . 14 14 11 11 11 Protection 14 | . . . 16 22 22 Energy Gun 4 | . . . 2 13 . Ballistic Gun 15 | . 28 28 19 5 10 Special Melee Weapon 2 | . . . . . 9 Naked Turns . | . . . . . . Heaviest Build 45 | 10 10 13 43 45 45 Greatest Support 46 | 20 20 40 46 46 46 Greatest Overweight (x) 1 | . . . 1 . . Average Overweight (x) . | . . . . . . Largest Inventory Capacity 25 | . 8 8 25 15 15 Average Capacity 13 | . 8 8 14 15 15 Most Carried 15 | . 7 8 15 15 15 Average Carried 12 | . 6 6 13 14 13 Final Capacity 15 | 8 8 8 15 15 15 Final Carried 15 | 6 7 7 15 15 6 Class Distribution -------------------- 87% | Mutant 12% | Scavenger-Mutant Dominant Class ---------------- Mutant | -10/Materials Mutant | -10/Mines Scavenger-Mutant | -9/Materials Mutant | -9/Mines Mutant | -9/Exiles Resources | -11 -10 -10 -9 -9 -9 ----------- Run | Scr Mat Min Mat Min Exi Matter Collected 1088 | 200 . 111 546 181 50 Remotely . | . . . . . . Salvage Created 1421 | . . 139 823 459 . Parts 73 | . . 4 44 25 . Haulers Intercepted 3 | . . . 3 . . Recyclers Shooed . | . . . . . . Parts Field Recycled . | . . . . . . Retrieved Matter . | . . . . . . Parts Self-Destructed . | . . . . . . Prevented . | . . . . . . Kills | -11 -10 -10 -9 -9 -9 ------- Run | Scr Mat Min Mat Min Exi Combat Hostiles Destroyed 41 | . . 4 19 18 . Guns 25 | . . 4 10 11 . AOE 16 | . . . 9 7 . Classes Destroyed 11 | . . 2 7 2 . Worker 1 | . . . 1 . . Tunneler 1 | . . . . 1 . Hauler 3 | . . . 3 . . Recycler 2 | . . . . 2 . Operator 1 | . . . 1 . . Swarmer 19 | . . . 4 15 . Grunt 12 | . . . 9 3 . Brawler 1 | . . . 1 . . Sentry 5 | . . . 5 . . Demolisher 2 | . . 2 . . . Assembled 2 | . . 2 . . . Best Kill Streak 8 | . . 2 8 4 . Combat Bots Only 7 | . . 2 7 4 . Max Kills in Single Turn 3 | . . 1 3 2 . Gunslinging 1 | . . . . 1 . Exploded 3 | . . . 3 2 . Melee . | . . . . . . Uniques/NPCs Destroyed 2 | . . 1 . . 1 YI-UF0 (-10/Mines) EX-DEC (-9/Exiles) Combat | -11 -10 -10 -9 -9 -9 -------- Run | Scr Mat Min Mat Min Exi Damage Taken 3054 | . . 334 609 648 1463 Core 451 | . . 46 56 82 267 Absorbed by Shields . | . . . . . . Redirected to Shielding 21 | . . . . 21 . Core Remaining (%) 90 | 100 . 81 . . . Volleys Fired 127 | . . 29 59 37 2 Largest 2 | . . 2 2 2 2 Hottest 131 | . . 40 112 131 76 Shots Fired 239 | . . 58 114 64 3 Gun 221 | . . 58 109 53 1 Cannon . | . . . . . . Launcher 16 | . . . 5 11 . Special 2 | . . . . . 2 Kinetic 166 | . . 58 103 5 . Thermal 57 | . . . 6 48 3 Explosive 16 | . . . 5 11 . Electromagnetic . | . . . . . . Robot Hit Streak 10 | . . 6 10 9 4 Robot Miss Streak 5 | . . 4 5 4 . Penetration Max . | . . . . . . Secondary Targets 4 | . . 1 . 3 . Max Gunslinging Chain 1 | . . 1 . 1 . Shots Hit Robots 166 | . . 33 79 29 25 Core Hits 85 | . . 13 41 27 4 Critical Kills 1 | . . 1 . . . Critical Parts Destroyed . | . . . . . . Critical Strikes 7 | . . 1 . 6 . Burn 6 | . . . . 6 . Destroy 1 | . . 1 . . . Melee Attacks 23 | . . . . . 23 Impact . | . . . . . . Slashing 18 | . . . . . 18 Piercing . | . . . . . . Sneak Attacks 5 | . . . . . 5 Combat Hostiles . | . . . . . . Follow-up Attacks 3 | . . . . . 3 Damage Inflicted 3206 | . . 285 1433 972 516 Guns 1648 | . . 279 925 443 1 Cannons . | . . . . . . Explosions 1037 | . . . 508 529 . Melee 513 | . . . . . 513 Ramming 6 | . . 6 . . . Kinetic 1174 | . . 279 856 39 . Thermal 530 | . . . 69 458 3 Explosive 983 | . . . 508 475 . Electromagnetic . | . . . . . . Impact . | . . . . . . Slashing 513 | . . . . . 513 Piercing . | . . . . . . Highest Corruption 1 | . . . 1 1 1 Average Corruption 1 | . . . 1 1 1 Corruption Purged . | . . . . . . Corruption Blocked . | . . . . . . Effects 23 | . . . 5 9 9 Message Errors 5 | . . . 3 1 1 Matter Fused 5 | . . . 1 . 4 Heat Flow Errors 3 | . . . . 2 1 Energy Discharges 4 | . . . . 3 1 Data Loss (minor) 3 | . . . . 1 2 Misfires 3 | . . . 1 2 . Overload Shots . | . . . . . . Overflow Damage 14 | . . . . 14 . Projectiles . | . . . . . . Explosions 14 | . . . . 14 . Melee . | . . . . . . Knockbacks . | . . . . . . Impact . | . . . . . . Kinetic . | . . . . . . Secondary . | . . . . . . Self-Inflicted Damage 91 | . . . 24 67 . Shots 5 | . . . 2 3 . Rammed 1 | . . 1 . . . Targets Rammed 1 | . . 1 . . . Kicked . | . . . . . . Crushed . | . . . . . . Highest Temperature 300 | . . . 60 300 91 Average Temperature 85 | . . . 12 109 53 Received Heat Transfer 264 | . . . 243 21 . Effects 2 | . . . . 2 . Energy Bleed 1 | . . . . 1 . Short Circuit 1 | . . . . 1 . Siege Activations . | . . . . . . Robots Corrupted . | . . . . . . Combat Hostiles . | . . . . . . Parts Fried . | . . . . . . Impact Corruptions . | . . . . . . Robots Melted . | . . . . . . Combat Hostiles . | . . . . . . Parts Melted 3 | . . . . 3 . Heat Transferred 1520 | . . . 148 1345 27 Parts Sabotaged . | . . . . . . Parts Stolen . | . . . . . . Parts Stripped . | . . . . . . Power Chain Reactions . | . . . . . . Missiles Intercepted . | . . . . . . Alert | -11 -10 -10 -9 -9 -9 ------- Run | Scr Mat Min Mat Min Exi Peak Influence 469 | . 5 35 469 460 . Initial 126 | . . 1 . 126 . Average 165 | . 3 7 209 283 . Maximum Alert Level 2 | . . . 2 2 . Low Security (%) 54 | . 100 100 42 20 . Level 1 38 | . . . 48 66 . Level 2 7 | . . . 9 12 . Level 3 . | . . . . . . Level 4 . | . . . . . . Level 5 . | . . . . . . High Security . | . . . . . . Max Security . | . . . . . . Squads Dispatched 1 | . . . 1 . . Investigation . | . . . . . . Extermination . | . . . . . . Reinforcement 1 | . . . 1 . . Assault . | . . . . . . Garrison . | . . . . . . Intercept . | . . . . . . Searches Triggered . | . . . . . . Construction Impeded . | . . . . . . Haulers Reinforced . | . . . . . . Active Scanning Responses . | . . . . . . Cargo Convoy Interrupts . | . . . . . . Stealth | -11 -10 -10 -9 -9 -9 --------- Run | Scr Mat Min Mat Min Exi Distress Signals 1 | . 1 . . . . Communications Jammed . | . . . . . . Distress Signals . | . . . . . . Times Spotted 65 | . 1 10 27 19 8 Peak Tracking Total 14 | . 2 14 7 4 9 Tactical Retreats . | . . . . . . Traps | -11 -10 -10 -9 -9 -9 ------- Run | Scr Mat Min Mat Min Exi Traps Triggered 1 | . . . 1 . . Indirectly . | . . . . . . Trap Hack Attempts . | . . . . . . Triggered . | . . . . . . Disarmed . | . . . . . . Reprogrammed . | . . . . . . Reused 2 | . . . . . 2 Traps Extracted . | . . . . . . Installed 3 | . . . . . 3 Triggered . | . . . . . . Most Traps Carried 3 | . . . . 3 3 Machines | -11 -10 -10 -9 -9 -9 ---------- Run | Scr Mat Min Mat Min Exi Machines Disabled 5 | . . . . 3 2 Max in Single Turn 1 | . . . . 1 . Machines Sabotaged . | . . . . . . Garrisons Compromised . | . . . . . . Overloaded Fab Kills . | . . . . . . Hacking | -11 -10 -10 -9 -9 -9 --------- Run | Scr Mat Min Mat Min Exi Machines Accessed 10 | . 2 . 7 . 1 Terminals 7 | . 2 . 5 . . Fabricators . | . . . . . . Repair Stations . | . . . . . . Recycling Units . | . . . . . . Scanalyzers 2 | . . . 2 . . Garrison Access . | . . . . . . Total Hacks 29 | . 7 . 21 . 1 Successful 12 | . 1 . 10 . 1 Failed 17 | . 6 . 11 . . Catastrophic 1 | . . . 1 . . Database Lockouts . | . . . . . . Manual 19 | . 7 . 11 . 1 Terminals 23 | . 7 . 16 . . Fabricators . | . . . . . . Repair Stations . | . . . . . . Recycling Units . | . . . . . . Scanalyzers 5 | . . . 5 . . Garrison Access . | . . . . . . Terminal Hacks 5 | . . . 4 . 1 Robot Schematic 1 | . . . 1 . . Robot Analysis 1 | . . . 1 . . Hauler Manifests 1 | . . . 1 . . Zone Layout 1 | . . . 1 . . EX-Prototype ID Bank 1 | . . . . . 1 Fabricator Hacks . | . . . . . . Repair Station Hacks . | . . . . . . Recycling Unit Hacks . | . . . . . . Scanalyzer 5 | . . . 5 . . Insert Component 2 | . . . 2 . . Analyze 3 | . . . 3 . . Garrison Access Hacks . | . . . . . . Unauthorized Hacks 2 | . 1 . 1 . . Terminals 2 | . 1 . 1 . . Botnet 2 | . 1 . 1 . . Fabricators . | . . . . . . Repair Stations . | . . . . . . Recycling Units . | . . . . . . Scanalyzers . | . . . . . . Garrison Access . | . . . . . . Data Cores Recovered . | . . . . . . Used . | . . . . . . Hacking Detections 8 | . 2 . 6 . . Full Trace Events . | . . . . . . Feedback Events . | . . . . . . Feedback Blocked . | . . . . . . Robot Schematics Acquired 1 | . . . 1 . . Robots Built . | . . . . . . Authchips . | . . . . . . Time . | . . . . . . Total Robot Build Rating . | . . . . . . Part Schematics Acquired 2 | . . . 2 . . Parts Built . | . . . . . . Authchips . | . . . . . . Time . | . . . . . . Total Part Build Rating . | . . . . . . Parts Repaired . | . . . . . . Time . | . . . . . . Parts Recycled . | . . . . . . Recycled Matter . | . . . . . . Retrieved Matter . | . . . . . . Retrieved Components . | . . . . . . Parts Scanalyzed 2 | . . . 2 . . Part Schematics Acquired 2 | . . . 2 . . Parts Damaged 1 | . . . 1 . . Bothacking | -11 -10 -10 -9 -9 -9 ------------ Run | Scr Mat Min Mat Min Exi Used RIF Installer . | . . . . . . Robots Hacked 5 | . . . . . 5 Non-combat 3 | . . . . . 3 Combat 2 | . . . . . 2 Robot Hacks Applied 5 | . . . . . 5 parse_system 5 | . . . . . 5 Relay Couplers Released . | . . . . . . Fabnet Peak Effective % . | . . . . . . Robots Rewired . | . . . . . . Allies Hacked . | . . . . . . Hacks Repelled . | . . . . . . Allies | -11 -10 -10 -9 -9 -9 -------- Run | Scr Mat Min Mat Min Exi Total Allies 2 | . . . . 2 . Largest Group 1 | . . . . 1 . Highest-Rated Group 31 | . . . . 31 . Highest-Rated Ally 31 | . . . . 31 . Total Orders . | . . . . . . Ally Attacks 12 | . . . . 5 7 Total Damage 354 | . . . . 43 311 Kills 1 | . . . . . 1 Allies Corrupted . | . . . . . . Allies Melted . | . . . . . . Turrets Deployed 3 | . . . . . 3 Intel | -11 -10 -10 -9 -9 -9 ------- Run | Scr Mat Min Mat Min Exi Robot Analysis Total 1 | . . . 1 . . Derelict Logs Recovered 3 | . . 2 . 1 . Drone Launches . | . . . . . . Drone Recoveries . | . . . . . . Exploration | -11 -10 -10 -9 -9 -9 ------------- Run | Scr Mat Min Mat Min Exi Turns Passed 4333 | . 75 1126 932 1267 933 Spaces Moved 2461 | 1 62 719 429 714 536 Core . | . . . . . . Treads 2009 | . . 330 429 714 536 Legs 452 | 1 62 389 . . . Wheels . | . . . . . . Hover . | . . . . . . Flight . | . . . . . . Fastest Speed 120 | 120 120 120 160 160 160 Average Speed 152 | 120 120 138 160 160 160 Slowest Speed 240 | 120 120 160 240 160 160 Overloaded Moves . | . . . . . . Propulsion Burnouts . | . . . . . . Robots Hopped . | . . . . . . Cave-ins Triggered . | . . . . . . Exploration Rate (%) 55 | 2 19 96 49 98 67 Regions Visited 5 Branch Regions 3 Pre-discovered Areas 1 | . . . . 1 . Known Exits Taken 1 | . . . 1 . . Unknown Exits Taken 4 | 1 1 1 . 1 . Scrap Searched 2 | . . . . 2 . Spaces Dug 15 | . . . 15 . . Terrain Destroyed 105 | . . . 33 72 . Melee . | . . . . . . Projectile . | . . . . . . AOE 105 | . . . 33 72 . Terrain Rammed . | . . . . . . Walls Destroyed . | . . . . . . Machines Disabled . | . . . . . . Actions | -11 -10 -10 -9 -9 -9 --------- Run | Scr Mat Min Mat Min Exi Total 2793 | . 62 805 570 775 581 Wait 52 | . . 36 10 6 . Move 2456 | . 61 718 428 713 536 Hop . | . . . . . . Pick Up 36 | . 1 8 20 4 3 Fast Attach 15 | . . 2 10 2 1 Attach 11 | . . 4 1 . 6 Detach 1 | . . . 1 . . Swap 30 | . . 1 18 7 4 Drop 41 | . . 6 23 6 6 Fire 127 | . . 29 59 37 2 Melee 20 | . . . . . 20 Ram . | . . . . . . Kick . | . . . . . . Crush 1 | . . 1 . . . Escape Stasis . | . . . . . . Rewire . | . . . . . . Trap 3 | . . . . . 3 Miscellaneous . | . . . . . . Route ------- -11/Scrapyard -10/Materials -10/Mines (discovered 2 exits: *Mat x2) -9/Materials (discovered 4 exits: *Mat x3 / *Min) -9/Mines (discovered 3 exits: *Mat x2 / *Exi) -9/Exiles History --------- Turn | Location | Event 1 | -11/Scrapyard | Discovered new exit (range 0) 1 | -11/Scrapyard | Entered Materials 58 | -10/Materials | Discovered new exit (range 14) 76 | -10/Materials | Entered Mines 226 | -10/Mines | Assembled infested the area 231 | -10/Mines | Assisted by a Guerilla fighting off Assembled 305 | -10/Mines | Build established: Mutant 446 | -10/Mines | YI-UF0 nonchalantly dropped a Grenade Launcher on the ground 496 | -10/Mines | Destroyed YI-UF0 687 | -10/Mines | Lost 3 parts (1p1n1u) 770 | -10/Mines | A weapon hastily lodged in a ceiling crevice suddenly fell to the ground 847 | -10/Mines | Learned location of 2 exits from Materials 860 | -10/Mines | Discovered new exit (range 5) 1180 | -10/Mines | Learned 2 Materials zone layouts 1188 | -10/Mines | Discovered new exit (range 7) 1202 | -10/Mines | Entered Materials 1202 | -9/Materials | Evolved 2 slots: Utility x2 1203 | -9/Materials | Identified exit to Mines 1203 | -9/Materials | Identified exit to Materials 1670 | -9/Materials | Build established: Scavenger-Mutant 1686 | -9/Materials | Discovered exit to Materials (range 15) 1940 | -9/Materials | Discovered exit to Materials (range 16) 1955 | -9/Materials | Destroyed 7 combat bots 2134 | -9/Materials | Entered Mines 2137 | -9/Mines | Received a Mining Laser from a helpful Derelict 2198 | -9/Mines | Build established: Mutant 2749 | -9/Mines | Found a hidden stash of uninstalled traps 2795 | -9/Mines | Escorted by a lone wolf Derelict 2947 | -9/Mines | Learned location of Zion (-6) 2949 | -9/Mines | Discovered exit to Materials (range 8) 2962 | -9/Mines | Discovered exit to Materials (range 8) 3092 | -9/Mines | Deemed a non-threat by the Exiles lab entrance 3094 | -9/Mines | Discovered new exit (range 5) 3401 | -9/Mines | Entered Exiles 3441 | -9/Exiles | Met 8R-AWN 3470 | -9/Exiles | Met EX-HEX 3520 | -9/Exiles | Met EX-BIN 3580 | -9/Exiles | Met EX-DEC 3748 | -9/Exiles | Aligned with FarCom system 3749 | -9/Exiles | Given EX-Vault access code 3789 | -9/Exiles | Opened EX-Vault 3801 | -9/Exiles | Found Deploy-a-Sentry 3803 | -9/Exiles | Found Deploy-a-Sentry 3806 | -9/Exiles | Found Deploy-a-Sentry 3840 | -9/Exiles | Warned to stay clear of 0b10 Research branches 3911 | -9/Exiles | DAS Turret deployed 4103 | -9/Exiles | Visited The Gauntlet 4265 | -9/Exiles | DAS Turret deployed 4272 | -9/Exiles | DAS Turret deployed 4279 | -9/Exiles | Attacked by the Exiles 4282 | -9/Exiles | Allies destroyed EX-DEC 4296 | -9/Exiles | Core integrity fell below 50% 4329 | -9/Exiles | Core integrity fell below 20% 4334 | -9/Exiles | Destroyed by as-07603 with Assembled Rifle Last Messages --------------- 04313_ HV Slug penetrates Wall. 04313_ Hrd. Light Armor Plating destroyed. 04315_ Mak. Sword follow-up attack on 8R-AWN. 04315_ Penetrated by HV Slug. 04315_ Mining Claw destroyed. 04315_ Penetrated by HV Slug. 04317_ HV Slug penetrates Machine. 04317_ HV Slug penetrates Wall. 04320_ Penetrated by HV Slug. 04320_ as-07603 IFF system glitched. 04321_ Imp. Treads destroyed. 04321_ Hrd. Light Armor Plating destroyed. 04322_ as-07603 misfires. 04322_ Penetrated by HV Slug. 04322_ Hvy. Ion Engine destroyed. 04323_ Mak. Sword severed. 04325_ Acquired Mak. Sword. 04326_ Penetrated by HV Slug. 04330_ Critical hit (Destroy). 04330_ Lgt. Treads destroyed. Map ----- +----------------------------------------------------+ | """"#????????????????????????????????????????????? | | """"#????????????????????????????????????????????? | | """"#????????????????????????????????????????????? | | """"#????????????????????????????????????????????? | | """#????????????????????????????????????????????? | | """#????????????????????????????????????????????? | | """#????????????????????????????????????????????? | | """#????????????????????????????????????????????? | | """#????????????????????????????????????????????? | | """""???????????????????????????????????????????? | | """#????????????????????????????????????????????? | | """"????????????????????????????????????????????? | | #????????????????????????????????????????????? | | """"#????????????????????????????????????????????? | | #####????????????????????????????????????????????? | | ?????????????????????????????????????????????????? | | ?????????????????????????????????????????????????? | | ?????????????????????????????????????????????????? | | ###########???????????????????????????????????? | | #"""""""""##??????????????????????????????????? | | " """ """"##?????????????????????????????????# | | "" " #???????????????????????????????## | | " """#???????????????????????????????# | | " "#???????????#####???????????????# | | " "##?????????##g #??????????????## | | ""###???????# @ #?????????????## # | | """#??????## %a%##????????????# # | | "#????### %% ###????????### #? | | ##???# a ########## #? | | ##?#; #""""## #?? | | ### * ##? | | ;# * #? | | #;## ## | | ""# #"" "##;# # | | a #"""## #######??;### * | | ####### ??????????#?##### | | ##?????? ????????????????### | | " ^ ##??????? ??????????????????### | | """ % #???????? ????????????????????### | | " ""#" % ##???????? ?????????????????????#" | | " """##"" ##????????? ?????????????????????### | | """"###########??????????????????????????????????? | | #####????????????????????????????????????????????? | | ?????????????????????????????????????????????????? | | ?????????????????????????????????????????????????? | | ?????????????????????????????????????????????????? | | ?????????????????????????????????????????????????? | | ?????????????????????????????????????????????????? | | ?????????????????????????????????????????????????? | | ?????????????????????????????????????????????????? | +----------------------------------------------------+ Best States ------------- Heat Dissipation 42 Energy Generation 14 Energy Capacity 280 Matter Stores 300 Matter Capacity 300 Sight Range 16 Terrain Scan Density 85 Armor Coverage 450 Resistance: EX 25 Weapon Shielding 33 Phase Shifting 5 Evasion (%) 55 Recoil Reduction 2 Item Schematics ----------------- Adv. Heat Sink | -9/Materials | Scanalyzed Med. Storage Unit | -9/Materials | Scanalyzed Robot Schematics ------------------ S-10 Pest | -9/Materials | Hacked Fabricated ------------ Nothing Alien Tech Used ----------------- None Achievements -------------- None Challenges ------------ None Game ------ Seed HeavyMomentumSuperbattery Manual? 0 Play Time 00:31:00 Cumulative 298.1 hours Start 2022.04.02 @ 17:02:36 End 2022.04.02 @ 17:31:14 Sessions 1 Manual Loads 0 Difficulty Rogue Special Mode None Game No. 332 Rogue 332 Adventurer 0 Explorer 0 Win Type - Total 27 Types 16/3/2/1/2/0/3/0/0 Lore% 83 Gallery% 79 Achievement% 80 Wizard Run 0 Options --------- ASCII 0 Keyboard 0 Movement Arrows Keybinds 0 Fullscreen 1 Font 18/SmallcapsGlow Map View 76x50 Tactical HUD 1 Map Filters NONE Filters NONE Steam 1 RUN: 201026cd-254e-49e6-80b4-47076c7f0c1e